Workbook

Sheet Лист1
K2: Приложение
A3: Типовое меню бесплатного горячего питания для учащихся с 1 по 4 класс, рацион питания – завтрак или обед, период – октябрь)
A4: Школа | C4: МБОУ "Школа №171" Советского района г.Казани | F4: Утвердил: | G4: должность | H4: директор
A5: Типовое примерное меню приготавливаемых блюд | G5: фамилия | H5: Галиакберова Р.Н.
A6: Возрастная категория | E6: 7-11 лет | G6: дата | I6: 10 | J6: 2023
H7: день | I7: месяц | J7: год
A8: Неделя | B8: День недели | C8: Прием пищи | D8: Раздел меню | E8: Блюда | F8: Вес блюда, г | G8: Белки | H8: Жиры | I8: Углеводы | J8: Калорийность | K8: № рецептуры | L8: Цена
A9: 1 | B9: 1 | C9: Завтрак | D9: гор.блюдо | E9: Грудка куриная в томатном соусе | F9: 90 | G9: 10.45 | H9: 6.5 | I9: 3.27 | J9: 113 | K9: Акт 2021г
D10: гор.блюдо | E10: Рис отварной | F10: 140 | G10: 3.57 | H10: 5.07 | I10: 37.34 | J10: 209 | K10: №304/2015
D11: гор.напиток | E11: Напиток из замороженой черной смородины | F11: 200 | G11: 0.1 | H11: 0.04 | I11: 10.7 | J11: 44 | K11: ТТК 2022г
D12: хлеб | E12: Хлебная корзина (хлеб пшеничный/хлеб ржано-пшеничный) | F12: 20 | G12: 1.25 | H12: 1.08 | I12: 9.42 | J12: 46 | K12: ТТК
D13: закуска | E13: Салат-бар в ассортименте | F13: 60 | G13: 1.62 | H13: 6.1 | I13: 6.92 | J13: 90 | K13: ТТК 2023г
D14: итого | F14: =SUM(F9:F13) -> 510 | G14: =SUM(G9:G13) -> 16.99 | H14: =SUM(H9:H13) -> 18.79 | I14: =SUM(I9:I13) -> 67.65 | J14: =SUM(J9:J13) -> 502 | L14: 66.8
A15: =A9 -> 1 | B15: =B9 -> 1 | C15: Обед | D15: закуска | E15: Салат-бар в ассортименте | F15: 60 | G15: 1.62 | H15: 6.1 | I15: 6.92 | J15: 90 | K15: ТТК 2023г
D16: 1 блюдо | E16: Суп картофельный | F16: 200 | G16: 7.5 | H16: 7.4 | I16: 36.4 | J16: 242 | K16: № 97/2015г
D17: 2 блюдо | E17: Грудка куриная в томатном соусе | F17: 90 | G17: 10.45 | H17: 6.5 | I17: 3.27 | J17: 113 | K17: Акт 2021г
D18: гарнир | E18: Рис отварной | F18: 140 | G18: 3.57 | H18: 5.07 | I18: 37.34 | J18: 209 | K18: №304/2015г
D19: напиток | E19: Чай с сахаром | F19: 208 | G19: 0.02 | I19: 7.99 | J19: 32 | K19: №630/1996г
D20: хлеб | E20: Хлебная корзина (хлеб пшеничный/хлеб ржано-пшеничный) | F20: 30 | G20: 1.89 | H20: 0.27 | I20: 14.13 | J20: 68 | K20: ТТК
D21: итого | F21: =SUM(F15:F20) -> 728 | G21: =SUM(G15:G20) -> 25.05 | H21: =SUM(H15:H20) -> 25.34 | I21: =SUM(I15:I20) -> 106.05 | J21: =SUM(J15:J20) -> 754 | L21: 66.8
A22: 1 | B22: 2 | C22: Завтрак | D22: гор.блюдо | E22: Жаркое по-домашнему | F22: 160 | G22: 8.64 | H22: 7.5 | I22: 21.63 | J22: 189 | K22: ТТК 2023г
D23: гор.напиток | E23: Напиток из вишни | F23: 200 | G23: 0.12 | H23: 0.9 | I23: 30.8 | J23: 131 | K23: ТТК 2023г
D24: хлеб | E24: Хлебная корзина (хлеб пшеничный/хлеб ржано-пшеничный) | F24: 20 | G24: 1.25 | H24: 1.08 | I24: 9.42 | J24: 46 | K24: ТТК
D25: фрукты | E25: Плоды свежие (яблоки) | F25: 100 | G25: 0.4 | H25: 0.4 | I25: 9.8 | J25: 47 | K25: №338/2015г
D26: закуска | E26: Салат-бар в ассортименте | F26: 60 | G26: 5.43 | H26: 6.65 | I26: 6.78 | J26: 108 | K26: ТТК 2023г
D27: итого | F27: =SUM(F22:F26) -> 540 | G27: =SUM(G22:G26) -> 15.84 | H27: =SUM(H22:H26) -> 16.53 | I27: =SUM(I22:I26) -> 78.43 | J27: =SUM(J22:J26) -> 521 | L27: 66.8
A28: =A22 -> 1 | B28: =B22 -> 2 | C28: Обед | D28: закуска | E28: Салат - бар в ассортименте | F28: 60 | G28: 5.43 | H28: 6.65 | I28: 6.78 | J28: 108 | K28: ТТК 2023г
D29: 1 блюдо | E29: Щи из свежей капусты, картофелем | F29: 200 | G29: 6.1 | H29: 8.35 | I29: 35.2 | J29: 240 | K29: №88/2015г
D30: 2 блюдо | E30: Жаркое по-домашнему | F30: 160 | G30: 8.64 | H30: 7.5 | I30: 21.63 | J30: 189 | K30: ТТК 2023г
D31: напиток | E31: Чай с сахаром | F31: 208 | G31: 0.02 | I31: 7.99 | J31: 32 | K31: №630/1996г
D32: хлеб | E32: Хлебная корзина (хлеб пшеничный/хлеб ржано-пшеничный) | F32: 30 | G32: 1.89 | H32: 0.27 | I32: 14.13 | J32: 68 | K32: ТТК
D33: фрукт | E33: Десерт фруктовый | F33: 50 | G33: 0.4 | H33: 0.4 | I33: 9.8 | J33: 47 | K33: №532/2013г
D34: итого | F34: =SUM(F28:F33) -> 708 | G34: =SUM(G28:G33) -> 22.48 | H34: =SUM(H28:H33) -> 23.17 | I34: =SUM(I28:I33) -> 95.53 | J34: =SUM(J28:J33) -> 684 | L34: 66.8
A35: 1 | B35: 3 | C35: Завтрак | D35: гор.блюдо | E35: Сосиски отварные | F35: 100 | G35: 8.6 | H35: 4.8 | I35: 11.75 | J35: 125 | K35: №243/2015г
D36: гор.блюдо | E36: Макароны отварныеи с сыром | F36: 140 | G36: 5.39 | H36: 6.65 | I36: 29.98 | J36: 201 | K36: ТТК 2019г
D37: гор.напиток | E37: Напиток яблочный | F37: 200 | G37: 0.1 | H37: 0.1 | I37: 12.4 | J37: 52 | K37: №701/2004
D38: хлеб | E38: Хлебная корзина (хлеб пшеничный/хлеб ржано-пшеничный) | F38: 20 | G38: 1.25 | H38: 1.08 | I38: 9.42 | J38: 46 | K38: ТТК
D39: закуска | E39: Салат-бар в ассортименте | F39: 60 | G39: 2.53 | H39: 6.1 | I39: 15.07 | J39: 125 | K39: ТТК 2023г
D40: итого | F40: =SUM(F35:F39) -> 520 | G40: =SUM(G35:G39) -> 17.87 | H40: =SUM(H35:H39) -> 18.73 | I40: =SUM(I35:I39) -> 78.62 | J40: =SUM(J35:J39) -> 549 | L40: 66.8
A41: =A35 -> 1 | B41: =B35 -> 3 | C41: Обед | D41: закуска | E41: Салат - бар в ассортименте | F41: 60 | G41: 2.53 | H41: 6.1 | I41: 15.07 | J41: 125 | K41: ТТК 2023г
D42: 1 блюдо | E42: Суп картофельный с гороом | F42: 200 | G42: 5.8 | H42: 4.72 | I42: 30.6 | J42: 188 | K42: №102/2015г
D43: 2 блюдо | E43: Сосиски отварные | F43: 100 | G43: 8.6 | H43: 4.8 | I43: 11.75 | J43: 125 | K43: №243/2015г
D44: гарнир | E44: Макаронные изделия отварные | F44: 140 | G44: 5.39 | H44: 6.65 | I44: 29.98 | J44: 201 | K44: №202/2015г
D45: напиток | E45: Чай с сахаром | F45: 208 | G45: 0.02 | I45: 7.99 | J45: 32 | K45: №630/1996г
D46: хлеб | E46: Хлебная корзина (хлеб пшеничный/хлеб ржано-пшеничный) | F46: 30 | G46: 1.89 | H46: 0.27 | I46: 14.13 | J46: 68 | K46: ТТК
D47: итого | F47: =SUM(F41:F46) -> 738 | G47: =SUM(G41:G46) -> 24.23 | H47: =SUM(H41:H46) -> 22.54 | I47: =SUM(I41:I46) -> 109.52 | J47: =SUM(J41:J46) -> 739 | L47: 66.8
A48: 1 | B48: 4 | C48: Завтрак | D48: гор.блюдо | E48: Плов с куриными грудками | F48: 160 | G48: 13.14 | H48: 12 | I48: 34 | J48: 297 | K48: ТТК 2023г
D49: напиток | E49: Сок | F49: 180 | G49: 0.9 | H49: 0.18 | I49: 18.2 | J49: 83 | K49: ТТК 2022г
D50: хлеб | E50: Хлебная корзина (хлеб пшеничный/хлеб ржано-пшеничный) | F50: 20 | G50: 1.25 | H50: 1.08 | I50: 9.42 | J50: 46 | K50: ТТК
D51: фрукты | E51: Плоды свежие (яблоки) | F51: 100 | G51: 0.4 | H51: 0.4 | I51: 9.8 | J51: 47 | K51: № 338/2015г
D52: закуска | E52: Салат-бар в ассортименте | F52: 60 | G52: 1.95 | H52: 6.18 | I52: 12.3 | J52: 112 | K52: ТТК 2023г
D53: итого | F53: =SUM(F48:F52) -> 520 | G53: =SUM(G48:G52) -> 17.64 | H53: =SUM(H48:H52) -> 19.84 | I53: =SUM(I48:I52) -> 83.72 | J53: =SUM(J48:J52) -> 585 | L53: 66.8
A54: =A48 -> 1 | B54: =B48 -> 4 | C54: Обед | D54: закуска | E54: Салат - бар в ассортименте | F54: 60 | G54: 1.95 | H54: 6.18 | I54: 12.3 | J54: 112 | K54: ТТК 2023г
D55: 1 блюдо | E55: Рассольник Ленинградский | F55: 200 | G55: 7.8 | H55: 10.06 | I55: 30.8 | J55: 245 | K55: №96/2015г
D56: 2 блюдо | E56: Плов с куриными грудками | F56: 160 | G56: 13.14 | H56: 12 | I56: 34 | J56: 297 | K56: ТТК 2021г
D57: напиток | E57: Чай с сахаром | F57: 208 | G57: 0.02 | I57: 7.99 | J57: 32 | K57: №630/1996г
D58: хлеб бел. | E58: Хлебная корзина (хлеб пшеничный/хлеб ржано-пшеничный) | F58: 30 | G58: 1.89 | H58: 0.27 | I58: 14.13 | J58: 68 | K58: ТТК
D59: фрукт | E59: Десерт фруктовый (яблоки) | F59: 50 | G59: 0.4 | H59: 0.4 | I59: 9.8 | J59: 47 | K59: №532/2013г
D60: итого | F60: =SUM(F54:F59) -> 708 | G60: =SUM(G54:G59) -> 25.2 | H60: =SUM(H54:H59) -> 28.91 | I60: =SUM(I54:I59) -> 109.02 | J60: =SUM(J54:J59) -> 801 | L60: 66.8
A61: 1 | B61: 5 | C61: Завтрак | D61: гор.блюдо | E61: Биточки рыбные из фарша минтая | F61: 90 | G61: 9.8 | H61: 2.01 | I61: 10.2 | J61: 98 | K61: ТТК 2021г
D62: гор.блюдо | E62: Пюре картофельное с маслом сливочным | F62: 145 | G62: 3.1 | H62: 7.97 | I62: 20.59 | J62: 169 | K62: №312/215г
D63: гор.напиток | E63: Напиток из шиповника | F63: 200 | G63: 0.01 | I63: 10.18 | J63: 40 | K63: ТТК 2021г
D64: хлеб | E64: Хлебная корзина (хлеб пшеничный/хлеб ржано-пшеничный) | F64: 20 | G64: 1.25 | H64: 1.08 | I64: 9.42 | J64: 46 | K64: ТТК
D65: закуска | E65: Салат-бар в ассортименте | F65: 60 | G65: 3.59 | H65: 6.1 | I65: 18 | J65: 141 | K65: ТТК 2023г
D66: итого | F66: =SUM(F61:F65) -> 515 | G66: =SUM(G61:G65) -> 17.75 | H66: =SUM(H61:H65) -> 17.16 | I66: =SUM(I61:I65) -> 68.39 | J66: =SUM(J61:J65) -> 494 | L66: 66.8
A67: =A61 -> 1 | B67: =B61 -> 5 | C67: Обед | D67: закуска | E67: Салат - бар в ассортименте | F67: 60 | G67: 3.59 | H67: 6.1 | I67: 18 | J67: 141 | K67: ТТК 2023г
D68: 1 блюдо | E68: Борщ со св. капустой, картофелем | F68: 200 | G68: 5.65 | H68: 8.73 | I68: 28.92 | J68: 216 | K68: №82/2015г
D69: 2 блюдо | E69: Биточки рыбные из фарша минтая | F69: 90 | G69: 9.8 | H69: 2.01 | I69: 10.2 | J69: 98 | K69: ТТК 2021г
D70: гарнир | E70: Пюре картофельное | F70: 140 | G70: 3.1 | H70: 7.97 | I70: 20.59 | J70: 169 | K70: №312/2015г
D71: напиток | E71: Чай с сахаром | F71: 208 | G71: 0.02 | I71: 7.99 | J71: 32 | K71: №630/1996г
D72: хлеб | E72: Хлебная корзина (хлеб пшеничный/хлеб ржано-пшеничный) | F72: 30 | G72: 1.89 | H72: 0.27 | I72: 14.13 | J72: 68 | K72: ТТК
D73: итого | F73: =SUM(F67:F72) -> 728 | G73: =SUM(G67:G72) -> 24.05 | H73: =SUM(H67:H72) -> 25.08 | I73: =SUM(I67:I72) -> 99.83 | J73: =SUM(J67:J72) -> 724 | L73: 66.8
A74: 1 | B74: 6 | C74: Завтрак | D74: гор.блюдо | E74: Пельмени "Для умников и умниц" отварные переменка | F74: 190 | G74: 16.2 | H74: 10 | I74: 44 | J74: 320 | K74: ТТК 2020г
D75: гор.напиток | E75: Чай с сахаром, лимоном | F75: 213 | G75: 0.12 | H75: 0.9 | I75: 30.8 | J75: 131 | K75: ТТК 2023г
D76: хлеб | E76: Хлебная корзина (хлеб пшеничный/хлеб ржано-пшеничный) | F76: 40 | G76: 2.52 | H76: 0.36 | I76: 18.84 | J76: 91 | K76: ТТК
D77: закуска | E77: Салат-бар в ассортименте | F77: 60 | G77: 0.45 | H77: 10.06 | I77: 1.42 | J77: 99 | K77: ТТК 2023г
D78: итого | F78: =SUM(F74:F77) -> 503 | G78: =SUM(G74:G77) -> 19.29 | H78: 21.32 | I78: 95.06 | J78: 641 | L78: 66.8
A79: =A74 -> 1 | B79: =B74 -> 6 | C79: Обед | D79: закуска | E79: Салат - бар в ассортименте | F79: 60 | G79: 0.45 | H79: 10.06 | I79: 1.42 | J79: 99 | K79: ТТК 2023г
D80: 1 блюдо | E80: Суп картофельный с рисом | F80: 200 | G80: 3.69 | H80: 5.3 | I80: 27.8 | J80: 173 | K80: №101/2015г
D81: 2 блюдо | E81: Пельмени "Для умников и умниц" отварные | F81: 140 | G81: 16.2 | H81: 10 | I81: 44 | J81: 320 | K81: ТТК 2020г
D82: напиток | E82: Чай с сахаром, лимоном | F82: 213 | G82: 0.06 | I82: 8.14 | J82: 34 | K82: ТТК 2021г
D83: хлеб | E83: Хлебная корзина (хлеб пшеничный/хлеб ржано-пшеничный) | F83: 40 | G83: 2.52 | H83: 0.36 | I83: 18.84 | J83: 91 | K83: ТТК
D84: фрукт | E84: Десерт фруктовый (яблоки) | F84: 50 | G84: 0.4 | H84: 0.4 | I84: 9.8 | J84: 47 | K84: №532/213г
D85: итого | F85: =SUM(F79:F84) -> 703 | G85: =SUM(G79:G84) -> 23.32 | H85: =SUM(H79:H84) -> 26.12 | I85: =SUM(I79:I84) -> 110 | J85: =SUM(J79:J84) -> 764 | L85: 66.8
A86: 2 | B86: 1 | C86: Завтрак | D86: гор.блюдо | E86: Котлеты "Столичные" | F86: 90 | G86: 8.1 | H86: 4.05 | I86: 3.4 | J86: 83 | K86: ТТК 2023г
D87: гор.блюдо | E87: Макароны отварные с сыром | F87: 140 | G87: 5.39 | H87: 6.65 | I87: 29.98 | J87: 201 | K87: ТТК 2019г
D88: гор.напиток | E88: Напиток из замороженой черной смородины | F88: 200 | G88: 0.1 | H88: 0.04 | I88: 10.7 | J88: 44 | K88: ТТК 2022г
D89: хлеб | E89: Хлебная корзина (хлеб пшеничный/хлеб ржано-пшеничный) | F89: 20 | G89: 1.25 | H89: 1.08 | I89: 9.42 | J89: 46 | K89: ТТК
D90: закуска | E90: Салат-бар в ассортименте | F90: 60 | G90: 1.62 | H90: 6.1 | I90: 12.9 | J90: 113 | K90: ТТК 2023г
D91: итого | F91: =SUM(F86:F90) -> 510 | G91: =SUM(G86:G90) -> 16.46 | H91: =SUM(H86:H90) -> 17.92 | I91: =SUM(I86:I90) -> 66.4 | J91: =SUM(J86:J90) -> 487 | L91: 66.8
A92: =A86 -> 2 | B92: =B86 -> 1 | C92: Обед | D92: закуска | E92: Салат - бар в ассортименте | F92: 60 | G92: 1.62 | H92: 6.1 | I92: 12.9 | J92: 113 | K92: ТТК 2023г
D93: 1 блюдо | E93: Суп картофельный | F93: 200 | G93: 7.5 | H93: 7.4 | I93: 36.4 | J93: 242 | K93: №97/2015г
D94: 2 блюдо | E94: Котлеты "Столичные" | F94: 90 | G94: 8.1 | H94: 4.05 | I94: 3.4 | J94: 83 | K94: ТТК 2023г
D95: гарнир | E95: Макаронные изделия отварные | F95: 140 | G95: 5.39 | H95: 6.65 | I95: 29.98 | J95: 201 | K95: №202/2015г
D96: напиток | E96: Чай с сахаром | F96: 208 | G96: 0.02 | I96: 7.99 | J96: 32 | K96: №630/1996г
D97: хлеб | E97: Хлебная корзина (хлеб пшеничный/хлеб ржано-пшеничный) | F97: 30 | G97: 1.89 | H97: 0.27 | I97: 14.13 | J97: 68 | K97: ТТК
D98: итого | F98: =SUM(F92:F97) -> 728 | G98: =SUM(G92:G97) -> 24.52 | H98: =SUM(H92:H97) -> 24.47 | I98: =SUM(I92:I97) -> 104.8 | J98: =SUM(J92:J97) -> 739 | L98: 66.8
A99: 2 | B99: 2 | C99: Завтрак | D99: гор.блюдо | E99: Жаркое из птицы (грудки куриные) | F99: 160 | G99: 12.98 | H99: 10.63 | I99: 28.5 | J99: 262 | K99: ТТК 2023г
D100: гор.напиток | E100: Напиток из вишни | F100: 200 | G100: 0.12 | H100: 0.9 | I100: 30.8 | J100: 131 | K100: ТТК 2023г
D101: хлеб | E101: Хлебная корзина (хлеб пшеничный/хлеб ржано-пшеничный) | F101: 20 | G101: 1.25 | H101: 1.08 | I101: 9.42 | J101: 46 | K101: ТТК
D102: фрукты | E102: Плоды свежие (яблоки) | F102: 100 | G102: 0.4 | H102: 0.4 | I102: 9.8 | J102: 47 | K102: №338/2015г
D103: закуска | E103: Салат-бар в ассортименте | F103: 60 | G103: 5.43 | H103: 6.65 | I103: 6.78 | J103: 108 | K103: ТТК 2023г
D104: итого | F104: =SUM(F99:F103) -> 540 | G104: =SUM(G99:G103) -> 20.18 | H104: =SUM(H99:H103) -> 19.66 | I104: =SUM(I99:I103) -> 85.3 | J104: =SUM(J99:J103) -> 594 | L104: 66.8
A105: =A99 -> 2 | B105: =B99 -> 2 | C105: Обед | D105: закуска | E105: Салат - бар в ассортименте | F105: 60 | G105: 5.43 | H105: 6.65 | I105: 6.78 | J105: 108 | K105: ТТК 2023г
D106: 1 блюдо | E106: Щи из свежей капусты, картофелем | F106: 200 | G106: 6.1 | H106: 8.35 | I106: 35.2 | J106: 240 | K106: №88/2015г
D107: 2 блюдо | E107: Жаркое из птицы (грудки куриные) | F107: 160 | G107: 12.98 | H107: 10.63 | I107: 28.5 | J107: 262 | K107: ТТК 2023г
D108: напиток | E108: Чай с сахаром | F108: 208 | G108: 0.02 | I108: 7.99 | J108: 32 | K108: №630/1996г
D109: хлеб | E109: Хлебная корзина (хлеб пшеничный/хлеб ржано-пшеничный) | F109: 30 | G109: 1.89 | H109: 0.27 | I109: 14.13 | J109: 68 | K109: ТТК
D110: фрукт | E110: Десерт фруктовый (яблоки) | F110: 50 | G110: 0.4 | H110: 0.4 | I110: 9.8 | J110: 47 | K110: №532/2013г
D111: итого | F111: =SUM(F105:F110) -> 708 | G111: =SUM(G105:G110) -> 26.82 | H111: =SUM(H105:H110) -> 26.3 | I111: =SUM(I105:I110) -> 102.4 | J111: =SUM(J105:J110) -> 757 | L111: 66.8
A112: 2 | B112: 3 | C112: Завтрак | D112: гор.блюдо | E112: Сосиски отварные | F112: 100 | G112: 8.6 | H112: 4.8 | I112: 11.75 | J112: 125 | K112: №243/2015г
D113: гор.блюдо | E113: Каша гречневая вязкая с маслом | F113: 145 | G113: 3.31 | H113: 7.95 | I113: 20.59 | J113: 167 | K113: №303/2015г
D114: гор.напиток | E114: Напиток яблочный | F114: 200 | G114: 0.1 | H114: 0.1 | I114: 12.4 | J114: 52 | K114: №701/2004г
D115: хлеб | E115: Хлебная корзина (хлеб пшеничный/хлеб ржано-пшеничный) | F115: 20 | G115: 1.25 | H115: 1.08 | I115: 9.42 | J115: 46 | K115: ТТК
D116: закуска | E116: Салат-бар в ассортименте | F116: 60 | G116: 2.53 | H116: 6.1 | I116: 15.07 | J116: 125 | K116: ТТК 2023г
D117: итого | F117: =SUM(F112:F116) -> 525 | G117: =SUM(G112:G116) -> 15.79 | H117: =SUM(H112:H116) -> 20.03 | I117: =SUM(I112:I116) -> 69.23 | J117: =SUM(J112:J116) -> 515 | L117: 66.8
A118: =A112 -> 2 | B118: 3 | C118: Обед | D118: закуска | E118: Салат - бар в ассортименте | F118: 60 | G118: 2.53 | H118: 6.1 | I118: 15.07 | J118: 125 | K118: ТТК 2023г
D119: 1 блюдо | E119: Суп картофельный с горохом | F119: 200 | G119: 5.8 | H119: 4.39 | I119: 30.5 | J119: 185 | K119: №102/2015г
D120: 2 блюдо | E120: Сосиски отварные | F120: 100 | G120: 8.6 | H120: 4.8 | I120: 11.75 | J120: 125 | K120: №243/2015г
D121: гарнир | E121: Каша гречневая вязкая с маслом | F121: 145 | G121: 3.31 | H121: 7.95 | I121: 20.59 | J121: 167 | K121: №303/2015г
D122: напиток | E122: Чай с сахаром | F122: 208 | G122: 0.02 | I122: 7.99 | J122: 32 | K122: №630/1996г
D123: хлеб | E123: Хлебная корзина (хлеб пшеничный/хлеб ржано-пшеничный) | F123: 30 | G123: 1.89 | H123: 0.27 | I123: 14.13 | J123: 68 | K123: ТТК
D124: итого | F124: =SUM(F118:F123) -> 743 | G124: =SUM(G118:G123) -> 22.15 | H124: =SUM(H118:H123) -> 23.51 | I124: =SUM(I118:I123) -> 100.03 | J124: =SUM(J118:J123) -> 702 | L124: 66.8
A125: 2 | B125: 4 | C125: Завтрак | D125: гор.блюдо | E125: Плов с говядиной | F125: 160 | G125: 12.2 | H125: 10.6 | I125: 23.09 | J125: 237 | K125: ТТК 2021г
D126: гор.напиток | E126: Напиток из замороженой черной смородины | F126: 200 | G126: 0.1 | H126: 0.04 | I126: 10.7 | J126: 44 | K126: ТТК 2022г
D127: хлеб | E127: Хлебная корзина (хлеб пшеничный/хлеб ржано-пшеничный) | F127: 20 | G127: 1.25 | H127: 1.08 | I127: 9.42 | J127: 46 | K127: ТТК
D128: фрукты | E128: Плоды свежие (яблоки) | F128: 100 | G128: 0.4 | H128: 0.4 | I128: 9.8 | J128: 47 | K128: №338/2015г
D129: закуска | E129: Салат-бар в ассортименте | F129: 60 | G129: 1.95 | H129: 6.18 | I129: 12.3 | J129: 112 | K129: ТТК 2023г
D130: итого | F130: =SUM(F125:F129) -> 540 | G130: =SUM(G125:G129) -> 15.9 | H130: =SUM(H125:H129) -> 18.3 | I130: =SUM(I125:I129) -> 65.31 | J130: =SUM(J125:J129) -> 486 | L130: 66.8
A131: =A125 -> 2 | B131: 4 | C131: Обед | D131: закуска | E131: Салат - бар в ассортименте | F131: 60 | G131: 1.95 | H131: 6.18 | I131: 12.3 | J131: 112 | K131: ТТК 2023г
D132: 1 блюдо | E132: Рассольник Ленинградский | F132: 200 | G132: 7.8 | H132: 9.2 | I132: 30.8 | J132: 241 | K132: №96/2015г
D133: 2 блюдо | E133: Плов с говядиной | F133: 160 | G133: 12.2 | H133: 10.6 | I133: 23.09 | J133: 237 | K133: ТТК 2021г
D134: напиток | E134: Чай с сахаром | F134: 208 | G134: 0.02 | I134: 7.99 | J134: 32 | K134: №630/1996г
D135: хлеб | E135: Хлебная корзина (хлеб пшеничный/хлеб ржано-пшеничный) | F135: 30 | G135: 1.89 | H135: 0.27 | I135: 14.13 | J135: 68 | K135: ТТК
D136: фрукт | E136: Десерт фруктовый (яблоки) | F136: 50 | G136: 0.4 | H136: 0.4 | I136: 9.8 | J136: 47 | K136: №532/2013г
D137: итого | F137: =SUM(F131:F136) -> 708 | G137: =SUM(G131:G136) -> 24.26 | H137: =SUM(H131:H136) -> 26.65 | I137: =SUM(I131:I136) -> 98.11 | J137: =SUM(J131:J136) -> 737 | L137: 66.8
A138: 2 | B138: 5 | C138: Завтрак | D138: гор.блюдо | E138: Ежики с мясом и рисом в соусе томатном | F138: 100 | G138: 8.2 | H138: 5 | I138: 10.23 | J138: 119 | K138: ТТК 2020г
D139: гор. блюдо | E139: Пюре картофельное | F139: 140 | G139: 3.06 | H139: 4.35 | I139: 20.56 | J139: 136 | K139: №312/2015г
D140: напиток | E140: Сок | F140: 180 | G140: 0.9 | H140: 0.18 | I140: 18.2 | J140: 83 | K140: ТТК 2022г
D141: хлеб | E141: Хлебная корзина (хлеб пшеничный/хлеб ржано-пшеничный) | F141: 20 | G141: 1.25 | H141: 1.08 | I141: 9.42 | J141: 46 | K141: ТТК
D142: закуска | E142: Салат-бар в ассортименте | F142: 60 | G142: 3.59 | H142: 6.1 | I142: 18 | J142: 141 | K142: ТТК 2023г
D143: итого | F143: =SUM(F138:F142) -> 500 | G143: =SUM(G138:G142) -> 17 | H143: =SUM(H138:H142) -> 16.71 | I143: =SUM(I138:I142) -> 76.41 | J143: =SUM(J138:J142) -> 525 | L143: 66.8
A144: =A138 -> 2 | B144: 5 | C144: Обед | D144: закуска | E144: Салат - бар в ассортименте | F144: 60 | G144: 3.59 | H144: 6.1 | I144: 18 | J144: 141 | K144: ТТК 2023г
D145: 1 блюдо | E145: Борщ со св. капустой, картофелем | F145: 200 | G145: 5.65 | H145: 8.73 | I145: 28.92 | J145: 216 | K145: №82/2015г
D146: 2 блюдо | E146: Ежики с мясом и рисом в соусе томатном | F146: 100 | G146: 8.2 | H146: 5 | I146: 10.23 | J146: 119 | K146: ТТК 2020г
D147: гарнир | E147: Пюре картофельное | F147: 140 | G147: 3.06 | H147: 4.35 | I147: 20.56 | J147: 136 | K147: №312/2015г
D148: напиток | E148: Чай с сахаром | F148: 208 | G148: 0.02 | I148: 7.99 | J148: 32 | K148: №630/1996г
D149: хлеб | E149: Хлебная корзина (хлеб пшеничный/хлеб ржано-пшеничный) | F149: 30 | G149: 1.89 | H149: 0.27 | I149: 14.13 | J149: 68 | K149: ТТК
D150: итого | F150: =SUM(F144:F149) -> 738 | G150: =SUM(G144:G149) -> 22.41 | H150: =SUM(H144:H149) -> 24.45 | I150: =SUM(I144:I149) -> 99.83 | J150: =SUM(J144:J149) -> 712 | L150: 66.8
A151: 2 | B151: 6 | C151: Завтрак | D151: гор.блюдо | E151: Пельмени "Для умников и для умниц" отварные переменка | F151: 190 | G151: 16.2 | H151: 10 | I151: 44 | J151: 320 | K151: ТТК 2020г
D152: гор.напиток | E152: Чай с сахаром, лимоном | F152: 213 | G152: 0.12 | H152: 0.9 | I152: 30.8 | J152: 131 | K152: ТТК 2023г
D153: хлеб | E153: Хлебная корзина (хлеб пшеничный/хлеб ржано-пшеничный) | F153: 40 | G153: 2.52 | H153: 0.36 | I153: 18.84 | J153: 91 | K153: ТТК
D154: закуска | E154: Салат-бар в ассортименте | F154: 60 | G154: 0.45 | H154: 10.06 | I154: 1.42 | J154: 99 | K154: ТТК 2023г
D155: итого | F155: =SUM(F151:F154) -> 503 | G155: =SUM(G151:G154) -> 19.29 | H155: =SUM(H151:H154) -> 21.32 | I155: =SUM(I151:I154) -> 95.06 | J155: =SUM(J151:J154) -> 641 | L155: 66.8
A156: =A151 -> 2 | B156: 6 | C156: Обед | D156: закуска | E156: Салат - бар в ассортименте | F156: 60 | G156: 0.45 | H156: 10.06 | I156: 1.42 | J156: 99 | K156: ТТК 2023г
D157: 1 блюдо | E157: Суп картофельный с рисом | F157: 200 | G157: 3.69 | H157: 5.3 | I157: 27.8 | J157: 173 | K157: №101/2015г
D158: 2 блюдо | E158: Пельмени "Для умников и для умниц" отварные | F158: 140 | G158: 16.2 | H158: 10 | I158: 44 | J158: 320 | K158: ТТК 2020г
D159: напиток | E159: Чай с сахаром, лимоном | F159: 213 | G159: 0.06 | I159: 8.14 | J159: 34 | K159: ТТК 2021г
D160: хлеб | E160: Хлебная корзина (хлеб пшеничный/хлеб ржано-пшеничный) | F160: 40 | G160: 2.52 | H160: 0.36 | I160: 18.84 | J160: 91 | K160: ТТК
D161: фрукт | E161: Десерт фруктовый (яблоки) | F161: 50 | G161: 0.4 | H161: 0.4 | I161: 9.8 | J161: 47 | K161: №532/2013г
D162: итого | F162: =SUM(F156:F161) -> 703 | G162: =SUM(G156:G161) -> 23.32 | H162: =SUM(H156:H161) -> 26.12 | I162: =SUM(I156:I161) -> 110 | J162: =SUM(J156:J161) -> 764 | L162: 66.8
